[Event "Early-Titled-Tuesday-Blitz-February-27-2024"]
[Site "Chess.com"]
[Date "2024.02.27"]
[Round "3"]
[White "IsaqueGoncalvesSanto"]
[Black "NM_Antelacus"]
[Result "0-1"]
[WhiteElo "1760"]
[BlackElo "2253"]
[TimeControl "180+1"]
[EndTime "8:26:20 PST"]
[Termination "NM_Antelacus won on time"]

1. d4 {[%clk 0:02:53.7]} 1... Nf6 {[%clk 0:02:59.3]} 2. c4 {[%clk 0:02:53.1]}
2... e6 {[%clk 0:02:59.4]} 3. Nc3 {[%clk 0:02:52.7]} 3... Bb4 {[%clk 0:02:59.2]}
4. e3 {[%clk 0:02:50]} 4... O-O {[%clk 0:02:58.5]} 5. Ne2 {[%clk 0:02:49.6]}
5... b6 {[%clk 0:02:58.2]} 6. a3 {[%clk 0:02:48.4]} 6... Bxc3+ {[%clk
0:02:56.5]} 7. Nxc3 {[%clk 0:02:47.9]} 7... Bb7 {[%clk 0:02:57.1]} 8. f3 {[%clk
0:02:47.6]} 8... d5 {[%clk 0:02:56.3]} 9. b4 {[%clk 0:02:44.5]} 9... Nbd7 {[%clk
0:02:54.8]} 10. cxd5 {[%clk 0:02:30.5]} 10... exd5 {[%clk 0:02:52.2]} 11. Bd3
{[%clk 0:02:30]} 11... c5 {[%clk 0:02:51]} 12. bxc5 {[%clk 0:02:21.4]} 12...
bxc5 {[%clk 0:02:51.9]} 13. dxc5 {[%clk 0:02:21]} 13... Nxc5 {[%clk 0:02:51.3]}
14. Bc2 {[%clk 0:02:21]} 14... Ba6 {[%clk 0:02:45.8]} 15. Kf2 {[%clk 0:02:14.1]}
15... Re8 {[%clk 0:02:34.3]} 16. Re1 {[%clk 0:02:13]} 16... Qd6 {[%clk
0:02:30.7]} 17. Kg1 {[%clk 0:02:08.5]} 17... Rad8 {[%clk 0:02:29]} 18. Qd4
{[%clk 0:02:04.6]} 18... Ne6 {[%clk 0:02:24.5]} 19. Qh4 {[%clk 0:02:00.9]} 19...
Qc5 {[%clk 0:02:20.9]} 20. Bd2 {[%clk 0:01:46.3]} 20... d4 {[%clk 0:02:18.4]}
21. Rac1 {[%clk 0:00:48]} 21... dxc3 {[%clk 0:02:15.3]} 22. Bxc3 {[%clk
0:00:48.2]} 22... Qg5 {[%clk 0:01:57.7]} 23. Bxf6 {[%clk 0:00:35.6]} 23... Qxf6
{[%clk 0:01:44.4]} 24. Qxh7+ {[%clk 0:00:32.8]} 24... Kf8 {[%clk 0:01:44.4]} 25.
Ba4 {[%clk 0:00:23.9]} 25... Bd3 {[%clk 0:01:36.1]} 26. Bxe8 {[%clk 0:00:10.4]}
26... Bxh7 {[%clk 0:01:33.1]} 0-1

[Event "Early-Titled-Tuesday-Blitz-February-27-2024"]
[Site "Chess.com"]
[Date "2024.02.27"]
[Round "3"]
[White "Chemim21"]
[Black "aistrel"]
[Result "0-1"]
[WhiteElo "2215"]
[BlackElo "2547"]
[TimeControl "180+1"]
[EndTime "8:26:22 PST"]
[Termination "aistrel won by checkmate"]

1. e4 {[%clk 0:03:00.9]} 1... c6 {[%clk 0:02:58.6]} 2. d4 {[%clk 0:03:00.2]}
2... d5 {[%clk 0:02:59.5]} 3. Nc3 {[%clk 0:02:59.8]} 3... dxe4 {[%clk
0:02:56.6]} 4. Nxe4 {[%clk 0:03:00.3]} 4... Nf6 {[%clk 0:02:57.1]} 5. Ng3 {[%clk
0:02:56.2]} 5... h5 {[%clk 0:02:56.7]} 6. Nf3 {[%clk 0:02:47.8]} 6... h4 {[%clk
0:02:56.4]} 7. Ne2 {[%clk 0:02:47.5]} 7... Bg4 {[%clk 0:02:55.5]} 8. Ne5 {[%clk
0:02:45.2]} 8... Bh5 {[%clk 0:02:51.7]} 9. Qd3 {[%clk 0:02:42.3]} 9... Nbd7
{[%clk 0:02:49.1]} 10. Nf4 {[%clk 0:02:35.6]} 10... e6 {[%clk 0:02:38.6]} 11.
Nxh5 {[%clk 0:02:18]} 11... Rxh5 {[%clk 0:02:37.6]} 12. Qb3 {[%clk 0:02:11.8]}
12... Nxe5 {[%clk 0:02:28.9]} 13. dxe5 {[%clk 0:02:07.6]} 13... Rxe5+ {[%clk
0:02:29.8]} 14. Be2 {[%clk 0:02:07.2]} 14... Qb6 {[%clk 0:01:58]} 15. Be3 {[%clk
0:01:49.1]} 15... Qxb3 {[%clk 0:01:57.7]} 16. axb3 {[%clk 0:01:49.8]} 16... Nd5
{[%clk 0:01:58.3]} 17. Bd2 {[%clk 0:01:45.3]} 17... Bb4 {[%clk 0:01:39.4]} 18.
c3 {[%clk 0:01:44.6]} 18... Bc5 {[%clk 0:01:39]} 19. b4 {[%clk 0:01:39.6]} 19...
Bb6 {[%clk 0:01:29.5]} 20. Kf1 {[%clk 0:01:23.4]} 20... O-O-O {[%clk 0:01:09.9]}
21. c4 {[%clk 0:01:20.2]} 21... Nf6 {[%clk 0:01:09.6]} 22. Bc3 {[%clk
0:01:12.6]} 22... Bd4 {[%clk 0:01:10]} 23. Bxd4 {[%clk 0:01:10.6]} 23... Rxd4
{[%clk 0:01:10.9]} 24. Rxa7 {[%clk 0:01:10.5]} 24... Rde4 {[%clk 0:01:09.5]} 25.
Ra8+ {[%clk 0:01:01.5]} 25... Kc7 {[%clk 0:01:07.1]} 26. Rf8 {[%clk 0:00:53.7]}
26... Rxe2 {[%clk 0:00:59.3]} 27. Rxf7+ {[%clk 0:00:52.6]} 27... Kb6 {[%clk
0:00:59.9]} 28. f4 {[%clk 0:00:44.5]} 28... Re1+ {[%clk 0:00:56.7]} 29. Kf2
{[%clk 0:00:44.6]} 29... R5e2+ {[%clk 0:00:56.3]} 30. Kf3 {[%clk 0:00:44.7]}
30... Re3+ {[%clk 0:00:57.2]} 31. Kf2 {[%clk 0:00:43.6]} 31... Ng4# {[%clk
0:00:57.9]} 0-1

[Event "Early-Titled-Tuesday-Blitz-February-27-2024"]
[Site "Chess.com"]
[Date "2024.02.27"]
[Round "3"]
[White "Gabrielian_Artur"]
[Black "FLYD"]
[Result "1-0"]
[WhiteElo "2782"]
[BlackElo "1840"]
[TimeControl "180+1"]
[EndTime "8:26:23 PST"]
[Termination "Gabrielian_Artur won by checkmate"]

1. e4 {[%clk 0:03:00.9]} 1... e5 {[%clk 0:03:00]} 2. Nc3 {[%clk 0:03:00.3]} 2...
Nf6 {[%clk 0:02:58.1]} 3. g3 {[%clk 0:03:00.6]} 3... g6 {[%clk 0:02:51.7]} 4.
Bg2 {[%clk 0:03:00]} 4... Bg7 {[%clk 0:02:52.3]} 5. Nge2 {[%clk 0:03:00.2]} 5...
c5 {[%clk 0:02:52.7]} 6. d3 {[%clk 0:02:59.1]} 6... d6 {[%clk 0:02:53.1]} 7. O-O
{[%clk 0:02:58.2]} 7... O-O {[%clk 0:02:49.2]} 8. f4 {[%clk 0:02:58]} 8... Nc6
{[%clk 0:02:48.4]} 9. f5 {[%clk 0:02:54.2]} 9... a6 {[%clk 0:02:40.4]} 10. h3
{[%clk 0:02:50.9]} 10... b5 {[%clk 0:02:39.2]} 11. g4 {[%clk 0:02:49.3]} 11...
b4 {[%clk 0:02:38.2]} 12. Nd5 {[%clk 0:02:40.9]} 12... Nd4 {[%clk 0:02:29.4]}
13. Bg5 {[%clk 0:02:36.2]} 13... h6 {[%clk 0:02:01.1]} 14. Nxf6+ {[%clk
0:02:34.7]} 14... Bxf6 {[%clk 0:02:02]} 15. Bxh6 {[%clk 0:02:34.7]} 15... Bg7
{[%clk 0:02:02.1]} 16. Bxg7 {[%clk 0:02:34.7]} 16... Kxg7 {[%clk 0:02:03]} 17.
Nxd4 {[%clk 0:02:34.6]} 17... exd4 {[%clk 0:02:00.3]} 18. f6+ {[%clk 0:02:25.2]}
18... Kh7 {[%clk 0:02:00.7]} 19. g5 {[%clk 0:02:23.8]} 19... Be6 {[%clk
0:01:53.4]} 20. Rf4 {[%clk 0:02:18.3]} 20... Rh8 {[%clk 0:01:52.8]} 21. Rh4+
{[%clk 0:02:12.6]} 21... Kg8 {[%clk 0:01:52.9]} 22. Rxh8+ {[%clk 0:02:11.1]}
22... Kxh8 {[%clk 0:01:53.8]} 23. Qe1 {[%clk 0:02:08.9]} 23... Qg8 {[%clk
0:01:47.2]} 24. Qh4+ {[%clk 0:02:07.2]} 24... Qh7 {[%clk 0:01:46.4]} 25. Qg3
{[%clk 0:02:07.8]} 25... Rd8 {[%clk 0:01:41.5]} 26. Rf1 {[%clk 0:02:05.1]} 26...
Kg8 {[%clk 0:01:34.3]} 27. Rf4 {[%clk 0:02:03.5]} 27... Qh5 {[%clk 0:01:34.8]}
28. Kh2 {[%clk 0:01:54.9]} 28... c4 {[%clk 0:00:47.8]} 29. Rh4 {[%clk
0:01:53.1]} 29... Qe2 {[%clk 0:00:48]} 30. Rh6 {[%clk 0:01:51]} 30... cxd3
{[%clk 0:00:14]} 31. cxd3 {[%clk 0:01:49.1]} 31... Bg4 {[%clk 0:00:08.7]} 32.
hxg4 {[%clk 0:01:48.1]} 32... Rc8 {[%clk 0:00:07.4]} 33. Qh4 {[%clk 0:01:42.7]}
33... Kf8 {[%clk 0:00:06.9]} 34. Rh8# {[%clk 0:01:41.8]} 1-0

[Event "Early-Titled-Tuesday-Blitz-February-27-2024"]
[Site "Chess.com"]
[Date "2024.02.27"]
[Round "3"]
[White "Road2GM3000"]
[Black "Viktor_Poddubnyi"]
[Result "1-0"]
[WhiteElo "2436"]
[BlackElo "2226"]
[TimeControl "180+1"]
[EndTime "8:26:23 PST"]
[Termination "Road2GM3000 won on time"]

1. d4 {[%clk 0:03:00.9]} 1... g6 {[%clk 0:03:00.3]} 2. c4 {[%clk 0:02:58.8]}
2... Bg7 {[%clk 0:03:01]} 3. Nc3 {[%clk 0:02:59.6]} 3... c5 {[%clk 0:03:01.4]}
4. d5 {[%clk 0:02:59.9]} 4... f5 {[%clk 0:03:01.9]} 5. e4 {[%clk 0:02:59.6]}
5... Bxc3+ {[%clk 0:03:02.4]} 6. bxc3 {[%clk 0:03:00.3]} 6... fxe4 {[%clk
0:03:02.7]} 7. f3 {[%clk 0:03:01.1]} 7... d6 {[%clk 0:02:55.3]} 8. fxe4 {[%clk
0:03:00.3]} 8... e5 {[%clk 0:02:55.9]} 9. Nf3 {[%clk 0:02:59.2]} 9... h6 {[%clk
0:02:37]} 10. Be2 {[%clk 0:02:58.6]} 10... Kd7 {[%clk 0:02:33.6]} 11. O-O {[%clk
0:02:57.2]} 11... Kc7 {[%clk 0:02:34]} 12. Qe1 {[%clk 0:02:49.1]} 12... g5
{[%clk 0:02:25.4]} 13. Qg3 {[%clk 0:02:47.8]} 13... Nf6 {[%clk 0:01:54]} 14. Bd3
{[%clk 0:02:38.8]} 14... Nbd7 {[%clk 0:01:43.6]} 15. Bxg5 {[%clk 0:02:23.8]}
15... hxg5 {[%clk 0:00:54.6]} 16. Nxg5 {[%clk 0:02:24]} 16... Nh5 {[%clk
0:00:49.2]} 17. Ne6+ {[%clk 0:02:08.3]} 17... Kb8 {[%clk 0:00:44.4]} 18. Nxd8
{[%clk 0:02:08.7]} 18... Nxg3 {[%clk 0:00:43.7]} 19. Nf7 {[%clk 0:02:06.9]}
19... Nxf1 {[%clk 0:00:19.7]} 20. Nxh8 {[%clk 0:02:07.6]} 20... Ne3 {[%clk
0:00:20]} 21. h3 {[%clk 0:02:05.2]} 21... Nb6 {[%clk 0:00:20.4]} 22. Re1 {[%clk
0:01:55.1]} 22... Nexc4 {[%clk 0:00:18.1]} 23. g4 {[%clk 0:01:55.9]} 23... Kc7
{[%clk 0:00:12.2]} 24. Rf1 {[%clk 0:01:51]} 24... Bd7 {[%clk 0:00:12.8]} 25. Ng6
{[%clk 0:01:50.3]} 25... Rg8 {[%clk 0:00:11.2]} 26. Rf6 {[%clk 0:01:48.8]} 26...
Nb2 {[%clk 0:00:05.6]} 27. Bc2 {[%clk 0:01:47]} 27... Nc8 {[%clk 0:00:04.3]} 28.
Kh2 {[%clk 0:01:44.9]} 28... Nc4 {[%clk 0:00:03.1]} 29. Kg3 {[%clk 0:01:41.9]}
29... Kd8 {[%clk 0:00:01.3]} 30. h4 {[%clk 0:01:42.2]} 30... Ne7 {[%clk
0:00:01.5]} 31. h5 {[%clk 0:01:41.6]} 31... Nxg6 {[%clk 0:00:01.2]} 32. hxg6
{[%clk 0:01:42.5]} 1-0

[Event "Early-Titled-Tuesday-Blitz-February-27-2024"]
[Site "Chess.com"]
[Date "2024.02.27"]
[Round "3"]
[White "Dyadya81"]
[Black "RandomNoob04"]
[Result "1-0"]
[WhiteElo "2849"]
[BlackElo "2628"]
[TimeControl "180+1"]
[EndTime "8:26:25 PST"]
[Termination "Dyadya81 won by resignation"]

1. e4 {[%clk 0:03:00.9]} 1... e5 {[%clk 0:03:00.3]} 2. Nf3 {[%clk 0:03:00.1]}
2... Nf6 {[%clk 0:03:00.9]} 3. Nxe5 {[%clk 0:02:59.2]} 3... Nxe4 {[%clk
0:03:01.1]} 4. Qe2 {[%clk 0:02:58.9]} 4... Qe7 {[%clk 0:03:01.1]} 5. Qxe4 {[%clk
0:02:58.8]} 5... d6 {[%clk 0:03:01.5]} 6. d4 {[%clk 0:02:58.3]} 6... dxe5 {[%clk
0:03:02.1]} 7. dxe5 {[%clk 0:02:58.1]} 7... Nc6 {[%clk 0:03:02.6]} 8. Nc3 {[%clk
0:02:58.5]} 8... Qxe5 {[%clk 0:03:01.8]} 9. Bf4 {[%clk 0:02:57.8]} 9... Qxe4+
{[%clk 0:02:57.5]} 10. Nxe4 {[%clk 0:02:58.7]} 10... Bf5 {[%clk 0:02:55.8]} 11.
Bd3 {[%clk 0:02:50.3]} 11... Nb4 {[%clk 0:02:55.1]} 12. Nf6+ {[%clk 0:02:47.3]}
12... gxf6 {[%clk 0:02:53.5]} 13. Bxf5 {[%clk 0:02:47.3]} 13... Nd5 {[%clk
0:02:49.8]} 14. Bd2 {[%clk 0:02:42.7]} 14... Bd6 {[%clk 0:02:45.5]} 15. O-O-O
{[%clk 0:02:39.6]} 15... O-O {[%clk 0:02:42.4]} 16. Bh6 {[%clk 0:02:12.9]} 16...
Bf4+ {[%clk 0:02:42.5]} 17. Bxf4 {[%clk 0:02:13]} 17... Nxf4 {[%clk 0:02:43.4]}
18. Rd7 {[%clk 0:02:12.9]} 18... Rfe8 {[%clk 0:02:34.7]} 19. g3 {[%clk
0:02:09.3]} 19... Ng6 {[%clk 0:02:17.1]} 20. Rxc7 {[%clk 0:01:22.7]} 20... Re2
{[%clk 0:02:16.3]} 21. f4 {[%clk 0:01:21.4]} 21... b6 {[%clk 0:01:27.9]} 22. Bd3
{[%clk 0:01:20.7]} 22... Rf2 {[%clk 0:01:26.2]} 23. Bc4 {[%clk 0:01:19.9]} 23...
Kh8 {[%clk 0:01:16.9]} 24. Bxf7 {[%clk 0:01:11.2]} 24... Rd8 {[%clk 0:01:16.8]}
25. Rxa7 {[%clk 0:00:55.9]} 25... Rdd2 {[%clk 0:01:16.2]} 26. Bxg6 {[%clk
0:00:45.8]} 26... hxg6 {[%clk 0:01:17.1]} 27. Rc7 {[%clk 0:00:45.7]} 27... Rxh2
{[%clk 0:01:12.7]} 28. Rxh2+ {[%clk 0:00:45.3]} 28... Rxh2 {[%clk 0:01:13.6]}
29. Rc6 {[%clk 0:00:44.7]} 29... Kg7 {[%clk 0:01:13.7]} 30. Rxb6 {[%clk
0:00:45]} 30... Rg2 {[%clk 0:01:14.3]} 31. Rb3 {[%clk 0:00:45.2]} 31... Kh6
{[%clk 0:01:11.8]} 32. a4 {[%clk 0:00:45.4]} 32... Kh5 {[%clk 0:01:11.9]} 33. a5
{[%clk 0:00:45.9]} 33... Kg4 {[%clk 0:01:11.7]} 34. a6 {[%clk 0:00:46.3]} 34...
Rh2 {[%clk 0:01:09.3]} 35. a7 {[%clk 0:00:45.4]} 35... Rh8 {[%clk 0:01:07.8]}
36. Rb8 {[%clk 0:00:45.4]} 36... Rh1+ {[%clk 0:01:07.3]} 37. Kd2 {[%clk
0:00:45.9]} 37... Ra1 {[%clk 0:01:08.2]} 38. a8=Q {[%clk 0:00:46.4]} 1-0

[Event "Early-Titled-Tuesday-Blitz-February-27-2024"]
[Site "Chess.com"]
[Date "2024.02.27"]
[Round "3"]
[White "LastGladiator1"]
[Black "xasid81"]
[Result "1-0"]
[WhiteElo "2976"]
[BlackElo "2533"]
[TimeControl "180+1"]
[EndTime "8:26:26 PST"]
[Termination "LastGladiator1 won by resignation"]

1. c4 {[%clk 0:03:00.9]} 1... c6 {[%clk 0:02:59.4]} 2. Qa4 {[%clk 0:02:58.7]}
2... Nf6 {[%clk 0:02:57.6]} 3. Nc3 {[%clk 0:02:58.3]} 3... d5 {[%clk 0:02:53.7]}
4. cxd5 {[%clk 0:02:52.7]} 4... Nxd5 {[%clk 0:02:54.6]} 5. e4 {[%clk 0:02:52.3]}
5... Nxc3 {[%clk 0:02:51.3]} 6. bxc3 {[%clk 0:02:48.2]} 6... g6 {[%clk
0:02:46.6]} 7. h4 {[%clk 0:02:46.8]} 7... h5 {[%clk 0:02:46.2]} 8. Nf3 {[%clk
0:02:38.5]} 8... Bg7 {[%clk 0:02:46.2]} 9. d4 {[%clk 0:02:32.3]} 9... Nd7 {[%clk
0:02:45.8]} 10. Qb3 {[%clk 0:02:28.4]} 10... O-O {[%clk 0:02:43.3]} 11. Ba3
{[%clk 0:02:17.4]} 11... b6 {[%clk 0:02:31.7]} 12. e5 {[%clk 0:02:10.8]} 12...
Nb8 {[%clk 0:02:11.6]} 13. Ng5 {[%clk 0:02:05.7]} 13... c5 {[%clk 0:01:55.8]}
14. Bd3 {[%clk 0:01:46.7]} 14... e6 {[%clk 0:01:50.4]} 15. Be4 {[%clk
0:01:43.8]} 15... Nc6 {[%clk 0:01:25.5]} 16. Bxc6 {[%clk 0:01:43.1]} 16... Rb8
{[%clk 0:01:26.4]} 17. Rd1 {[%clk 0:01:41.5]} 17... Ba6 {[%clk 0:01:25.7]} 18.
Bb5 {[%clk 0:01:31.9]} 18... Bb7 {[%clk 0:01:23.3]} 19. O-O {[%clk 0:01:28.5]}
19... Qc7 {[%clk 0:01:22.2]} 20. Be2 {[%clk 0:01:23.1]} 20... Rfd8 {[%clk
0:01:17.3]} 21. Bc1 {[%clk 0:01:21.1]} 21... cxd4 {[%clk 0:01:11.4]} 22. cxd4
{[%clk 0:01:20.6]} 22... Bd5 {[%clk 0:01:11.4]} 23. Qb1 {[%clk 0:01:18.7]} 23...
Rbc8 {[%clk 0:01:09.5]} 24. Bxh5 {[%clk 0:01:16.2]} 24... gxh5 {[%clk
0:01:08.3]} 25. Qh7+ {[%clk 0:01:15.6]} 25... Kf8 {[%clk 0:01:08.9]} 26. Ba3+
{[%clk 0:01:16.4]} 26... Ke8 {[%clk 0:01:06.7]} 27. Rc1 {[%clk 0:01:10.1]} 27...
Qxc1 {[%clk 0:01:00.7]} 28. Qg8+ {[%clk 0:01:06.3]} 28... Kd7 {[%clk 0:01:00.3]}
29. Qxf7+ {[%clk 0:01:06]} 29... Kc6 {[%clk 0:01:00.7]} 30. Rxc1+ {[%clk
0:01:06.1]} 30... Kb5 {[%clk 0:01:01.3]} 31. Rxc8 {[%clk 0:01:05.2]} 31... Rxc8
{[%clk 0:01:02.2]} 32. Qxg7 {[%clk 0:01:05.5]} 32... Rc2 {[%clk 0:01:01.5]} 33.
Qd7+ {[%clk 0:01:03.9]} 33... Bc6 {[%clk 0:01:01.9]} 34. Qxe6 {[%clk 0:01:04]}
34... Ka6 {[%clk 0:00:58.2]} 35. Qb3 {[%clk 0:01:04.3]} 35... Re2 {[%clk
0:00:56.4]} 36. d5 {[%clk 0:01:02.8]} 36... Bb5 {[%clk 0:00:57.3]} 37. e6 {[%clk
0:01:02.4]} 37... Re1+ {[%clk 0:00:57.1]} 38. Kh2 {[%clk 0:01:01.8]} 38... Bc4
{[%clk 0:00:57.6]} 39. Qxc4+ {[%clk 0:01:01.4]} 1-0

[Event "Early-Titled-Tuesday-Blitz-February-27-2024"]
[Site "Chess.com"]
[Date "2024.02.27"]
[Round "3"]
[White "mjray79"]
[Black "Polish_fighter3000"]
[Result "0-1"]
[WhiteElo "2754"]
[BlackElo "3078"]
[TimeControl "180+1"]
[EndTime "8:26:27 PST"]
[Termination "Polish_fighter3000 won by checkmate"]

1. d4 {[%clk 0:03:00.9]} 1... Nf6 {[%clk 0:02:58.3]} 2. c4 {[%clk 0:03:00.8]}
2... e6 {[%clk 0:02:57.8]} 3. Nf3 {[%clk 0:03:00.5]} 3... b6 {[%clk 0:02:56.7]}
4. g3 {[%clk 0:03:00.2]} 4... Ba6 {[%clk 0:02:54.1]} 5. Qc2 {[%clk 0:03:00]}
5... Bb7 {[%clk 0:02:49.1]} 6. Bg2 {[%clk 0:02:59.7]} 6... c5 {[%clk 0:02:46.2]}
7. d5 {[%clk 0:02:59.4]} 7... exd5 {[%clk 0:02:47.1]} 8. cxd5 {[%clk 0:02:59.6]}
8... Nxd5 {[%clk 0:02:45.4]} 9. O-O {[%clk 0:02:59.6]} 9... Nc6 {[%clk 0:02:42]}
10. Rd1 {[%clk 0:02:54.9]} 10... Be7 {[%clk 0:02:39.2]} 11. a3 {[%clk 0:02:54]}
11... Nc7 {[%clk 0:02:34.1]} 12. Bf4 {[%clk 0:02:52.1]} 12... Ne6 {[%clk
0:02:28.5]} 13. e3 {[%clk 0:02:51.8]} 13... O-O {[%clk 0:02:11.4]} 14. Nc3
{[%clk 0:02:50.4]} 14... Nxf4 {[%clk 0:02:07.1]} 15. exf4 {[%clk 0:02:51.3]}
15... h6 {[%clk 0:01:28.3]} 16. Rd2 {[%clk 0:02:48.8]} 16... d6 {[%clk
0:00:56.3]} 17. Rad1 {[%clk 0:02:44.6]} 17... Qe8 {[%clk 0:00:48.4]} 18. Nd5
{[%clk 0:02:42.4]} 18... Rd8 {[%clk 0:00:45]} 19. Re1 {[%clk 0:02:22.6]} 19...
Qd7 {[%clk 0:00:44.3]} 20. Ne5 {[%clk 0:02:04]} 20... dxe5 {[%clk 0:00:37.7]}
21. Nf6+ {[%clk 0:01:59]} 21... Bxf6 {[%clk 0:00:38]} 22. Rxd7 {[%clk
0:01:59.7]} 22... Rxd7 {[%clk 0:00:38.9]} 23. fxe5 {[%clk 0:01:59.8]} 23... Nxe5
{[%clk 0:00:37.3]} 24. Qf5 {[%clk 0:01:49.3]} 24... Bxg2 {[%clk 0:00:32.7]} 25.
Kxg2 {[%clk 0:01:50.2]} 25... Re7 {[%clk 0:00:28.3]} 26. f4 {[%clk 0:01:49.4]}
26... Ng6 {[%clk 0:00:25.8]} 27. Rxe7 {[%clk 0:01:48.2]} 27... Nxe7 {[%clk
0:00:26.7]} 28. Qd7 {[%clk 0:01:48.7]} 28... Nc8 {[%clk 0:00:26.1]} 29. b4
{[%clk 0:01:45]} 29... c4 {[%clk 0:00:25.4]} 30. Qc6 {[%clk 0:01:43.2]} 30... c3
{[%clk 0:00:25.5]} 31. g4 {[%clk 0:01:40.4]} 31... Ne7 {[%clk 0:00:25.8]} 32.
Qe4 {[%clk 0:01:38.9]} 32... Rc8 {[%clk 0:00:25.8]} 33. Qc2 {[%clk 0:01:37.8]}
33... Nd5 {[%clk 0:00:24.8]} 34. Kf3 {[%clk 0:01:38.3]} 34... Rc4 {[%clk
0:00:23.8]} 35. Qb3 {[%clk 0:01:35.8]} 35... Rxf4+ {[%clk 0:00:22.7]} 36. Ke2
{[%clk 0:01:36.4]} 36... Re4+ {[%clk 0:00:21.1]} 37. Kd3 {[%clk 0:01:36.1]}
37... Rd4+ {[%clk 0:00:20.6]} 38. Kc2 {[%clk 0:01:36.5]} 38... Ne3+ {[%clk
0:00:16.4]} 39. Kxc3 {[%clk 0:01:37.1]} 39... Rd5# {[%clk 0:00:16]} 0-1

[Event "Early-Titled-Tuesday-Blitz-February-27-2024"]
[Site "Chess.com"]
[Date "2024.02.27"]
[Round "3"]
[White "Sadykov_Ramil"]
[Black "szachmistrz2500"]
[Result "0-1"]
[WhiteElo "2583"]
[BlackElo "2417"]
[TimeControl "180+1"]
[EndTime "8:26:33 PST"]
[Termination "szachmistrz2500 won by checkmate"]

1. d4 {[%clk 0:03:00.2]} 1... d5 {[%clk 0:02:58.5]} 2. Bf4 {[%clk 0:03:00.6]}
2... Nf6 {[%clk 0:02:54.1]} 3. Nc3 {[%clk 0:03:00.6]} 3... c6 {[%clk 0:02:50.3]}
4. e3 {[%clk 0:03:00.5]} 4... Bf5 {[%clk 0:02:45.4]} 5. Nf3 {[%clk 0:03:00.6]}
5... h6 {[%clk 0:02:44.1]} 6. Ne5 {[%clk 0:03:00.3]} 6... Nbd7 {[%clk
0:02:41.6]} 7. g4 {[%clk 0:03:00.3]} 7... Bh7 {[%clk 0:02:40.4]} 8. Bd3 {[%clk
0:03:00.5]} 8... Bxd3 {[%clk 0:02:38.3]} 9. Nxd3 {[%clk 0:03:01.4]} 9... e6
{[%clk 0:02:36.1]} 10. Qf3 {[%clk 0:03:00.8]} 10... Nb6 {[%clk 0:02:25.1]} 11.
h4 {[%clk 0:02:57.1]} 11... Nc4 {[%clk 0:02:24.7]} 12. g5 {[%clk 0:02:41.6]}
12... hxg5 {[%clk 0:02:20]} 13. hxg5 {[%clk 0:02:42.5]} 13... Rxh1+ {[%clk
0:02:19.3]} 14. Qxh1 {[%clk 0:02:43.4]} 14... Nd7 {[%clk 0:02:18.6]} 15. g6
{[%clk 0:02:18.7]} 15... f6 {[%clk 0:02:17.3]} 16. Qh7 {[%clk 0:02:05.9]} 16...
Qe7 {[%clk 0:02:02.8]} 17. O-O-O {[%clk 0:02:00.2]} 17... O-O-O {[%clk
0:02:02.2]} 18. Qg8 {[%clk 0:01:45.9]} 18... e5 {[%clk 0:02:01.1]} 19. Bg3
{[%clk 0:01:33.3]} 19... e4 {[%clk 0:01:52.3]} 20. Nc5 {[%clk 0:01:15.5]} 20...
b6 {[%clk 0:01:29.9]} 21. Nxd7 {[%clk 0:00:56.9]} 21... Qb4 {[%clk 0:01:15]} 22.
Na4 {[%clk 0:00:32.8]} 22... Qxa4 {[%clk 0:01:13.7]} 23. Nxf8 {[%clk 0:00:26.2]}
23... Qxa2 {[%clk 0:01:13.6]} 24. Qe6+ {[%clk 0:00:25.9]} 24... Kb7 {[%clk
0:01:13.4]} 25. Qe7+ {[%clk 0:00:24]} 25... Ka6 {[%clk 0:01:13.3]} 26. Qb4
{[%clk 0:00:11.8]} 26... Qa1# {[%clk 0:01:12.5]} 0-1

[Event "Early-Titled-Tuesday-Blitz-February-27-2024"]
[Site "Chess.com"]
[Date "2024.02.27"]
[Round "3"]
[White "Heinza9"]
[Black "xakevicius91"]
[Result "1-0"]
[WhiteElo "2341"]
[BlackElo "2560"]
[TimeControl "180+1"]
[EndTime "8:26:34 PST"]
[Termination "Heinza9 won by resignation"]

1. e4 {[%clk 0:03:00.9]} 1... c5 {[%clk 0:02:51.4]} 2. Nf3 {[%clk 0:03:00.5]}
2... a6 {[%clk 0:02:51.8]} 3. c4 {[%clk 0:02:59.7]} 3... Nc6 {[%clk 0:02:49.3]}
4. Nc3 {[%clk 0:02:59.5]} 4... e5 {[%clk 0:02:48.9]} 5. d3 {[%clk 0:02:57.5]}
5... Nge7 {[%clk 0:02:49.5]} 6. Be2 {[%clk 0:02:56.4]} 6... g6 {[%clk
0:02:50.1]} 7. O-O {[%clk 0:02:56.4]} 7... Bg7 {[%clk 0:02:50.7]} 8. Nd5 {[%clk
0:02:55.2]} 8... O-O {[%clk 0:02:51.1]} 9. h3 {[%clk 0:02:54.4]} 9... d6 {[%clk
0:02:51]} 10. Nh2 {[%clk 0:02:53]} 10... f5 {[%clk 0:02:46.7]} 11. f4 {[%clk
0:02:50.3]} 11... Be6 {[%clk 0:02:45.6]} 12. Rb1 {[%clk 0:02:35.2]} 12... b5
{[%clk 0:02:44.7]} 13. b3 {[%clk 0:02:34.3]} 13... Nd4 {[%clk 0:02:42]} 14. Be3
{[%clk 0:02:27.5]} 14... Rc8 {[%clk 0:02:39.1]} 15. Nf3 {[%clk 0:02:20]} 15...
fxe4 {[%clk 0:02:34.9]} 16. dxe4 {[%clk 0:02:18.7]} 16... Nxe2+ {[%clk
0:02:33.7]} 17. Qxe2 {[%clk 0:02:17.6]} 17... Bxd5 {[%clk 0:02:34.1]} 18. exd5
{[%clk 0:02:15.5]} 18... exf4 {[%clk 0:02:34.6]} 19. Bd2 {[%clk 0:02:09.4]}
19... Qd7 {[%clk 0:02:32.2]} 20. Ng5 {[%clk 0:02:08.8]} 20... Be5 {[%clk
0:02:28.3]} 21. Ne6 {[%clk 0:02:08.2]} 21... Rf7 {[%clk 0:02:24.7]} 22. Bxf4
{[%clk 0:02:02.4]} 22... Bxf4 {[%clk 0:02:24.8]} 23. Rxf4 {[%clk 0:02:01.3]}
23... Rxf4 {[%clk 0:02:25]} 24. Nxf4 {[%clk 0:02:01.1]} 24... Nf5 {[%clk
0:02:25.5]} 25. Ne6 {[%clk 0:01:58.3]} 25... Re8 {[%clk 0:02:22.7]} 26. Re1
{[%clk 0:01:50.5]} 26... Re7 {[%clk 0:02:13.4]} 27. Qd2 {[%clk 0:01:37.5]} 27...
b4 {[%clk 0:02:07]} 28. Rf1 {[%clk 0:01:25.5]} 28... Qe8 {[%clk 0:02:01.7]} 29.
Qg5 {[%clk 0:01:20.3]} 29... Rf7 {[%clk 0:01:53.3]} 30. g4 {[%clk 0:01:13.9]}
30... Ng7 {[%clk 0:01:53.1]} 31. Rxf7 {[%clk 0:01:12.6]} 31... Kxf7 {[%clk
0:01:47.3]} 32. Qf4+ {[%clk 0:01:08.8]} 32... Kg8 {[%clk 0:01:47.3]} 33. Qxd6
{[%clk 0:01:07]} 33... Nxe6 {[%clk 0:01:45.2]} 34. dxe6 {[%clk 0:01:06.7]} 34...
Qf8 {[%clk 0:01:44.7]} 35. e7 {[%clk 0:01:01.4]} 35... Qe8 {[%clk 0:01:44.9]}
36. Qe6+ {[%clk 0:01:01.4]} 36... Kg7 {[%clk 0:01:44.9]} 37. g5 {[%clk
0:00:55.6]} 37... a5 {[%clk 0:01:37.4]} 38. Qf6+ {[%clk 0:00:44.2]} 38... Kg8
{[%clk 0:01:36.3]} 39. h4 {[%clk 0:00:42.1]} 39... Qb8 {[%clk 0:01:34.9]} 40.
Qe6+ {[%clk 0:00:39.8]} 40... Kg7 {[%clk 0:01:31]} 41. e8=Q {[%clk 0:00:39.5]}
41... Qg3+ {[%clk 0:01:31.1]} 42. Kf1 {[%clk 0:00:39.5]} 42... Qf3+ {[%clk
0:01:31]} 43. Ke1 {[%clk 0:00:39.5]} 43... Qc3+ {[%clk 0:01:31.7]} 44. Ke2
{[%clk 0:00:38.9]} 44... Qc2+ {[%clk 0:01:30.6]} 45. Ke3 {[%clk 0:00:37.6]}
45... Qc1+ {[%clk 0:01:31.1]} 46. Ke4 {[%clk 0:00:37.2]} 46... Qh1+ {[%clk
0:01:31.4]} 47. Ke5 {[%clk 0:00:36.3]} 47... Qh2+ {[%clk 0:01:32]} 48. Kd5
{[%clk 0:00:36]} 48... Qd2+ {[%clk 0:01:32.1]} 1-0